fUSD/lending_fUSD_20251113
["ID","MTS","AMOUNT","RATE_DAILY","PERIOD"]
[393893771,1763075279832,10000.01,0.00016886,2]
[393893772,1763075279857,10000.01,0.00016886,2]
[393893773,1763075279881,8109.46837642,0.00016886,2]
[393893779,1763075333942,1890.54162358,0.0001649,2]
[393893780,1763075333967,10000.01,0.0001649,2]
[393893781,1763075333991,10000.01,0.0001649,2]
[393893782,1763075334014,10000.01,0.0001649,2]
[393893783,1763075334038,3263.82837642,0.0001649,2]
[393893788,1763075352444,500.0,0.00016873,2]
[393893789,1763075352704,500.0,0.00016873,2]
[393893794,1763075401425,1200.0,0.00016885,2]
[393893795,1763075403472,184.30084438,0.00016873,2]
[393893796,1763075403620,500.0,0.00016873,2]
[393893797,1763075403735,501.54339398,0.00016873,2]
[393893799,1763075409853,500.0,0.00016873,2]
[393893808,1763075424509,2470.51,0.00030137,120]
[393893816,1763075432029,-160.0,0.00016886,2]
[393893817,1763075432039,-195.0,0.00016886,2]
[393893818,1763075432048,-156263.64239494,0.00016886,2]
[393893819,1763075432059,-32238.53427829,0.00016886,2]
[393893820,1763075432142,-298.497,0.00016886,2]
[393894043,1763075437822,-21709.34946867,0.00016886,2]
[393894044,1763075437832,-300.0,0.00016886,2]
[393894045,1763075437844,-300.0,0.00016887,2]
[393894046,1763075437854,-195.0,0.00016887,2]
[393894047,1763075437864,-1000.0,0.0001689,2]
[393894048,1763075437873,-11716.24153131,0.00016911,2]
[393894049,1763075437883,-676.7,0.00016934,2]
[393894050,1763075437893,-150.0,0.00016958,2]
[393894051,1763075437902,-430.02161934,0.00016989,2]
[393894052,1763075437912,-500.0,0.00016999,2]
[393894053,1763075437923,-11716.24153131,0.00017034,2]
[393894054,1763075437933,-150.0,0.00017053,2]
[393894055,1763075437942,-200.0,0.00017055,2]
[393894056,1763075437952,-1250.0,0.00017132,2]
[393894057,1763075437961,-1250.0,0.00017132,2]
[393894058,1763075437970,-150.0,0.00017147,2]
[393894059,1763075437980,-443.73507614,0.00017158,2]
[393894060,1763075437993,-500.0,0.00017158,2]
[393894061,1763075438019,-500.0,0.00017158,2]
[393894062,1763075438029,-500.0,0.00017158,2]
[393894063,1763075438038,-11716.24153131,0.00017158,2]
[393894064,1763075438047,-1600.0,0.000172,6]
[393894065,1763075438058,-200.0,0.000172,6]
[393894066,1763075438069,-200.0,0.00017225,2]
[393894067,1763075438078,-150.0,0.00017242,2]
[393894068,1763075438088,-11716.24153131,0.00017282,2]
[393894069,1763075438097,-3200.0,0.000173,6]
[393894070,1763075438108,-500.0,0.000173,6]
[393894071,1763075438120,-150.0,0.00017337,2]
[393894072,1763075438129,-4900.0,0.000174,6]
[393894073,1763075438138,-800.0,0.000174,6]
[393894075,1763075438148,-11716.24153131,0.00017405,2]
[393894076,1763075438159,-1000.0,0.00017421,2]
[393894077,1763075438168,-500.0,0.00017421,2]
[393894078,1763075438178,-150.0,0.00017432,2]
[393894079,1763075438187,-174.74,0.00017443,2]
[393894080,1763075438197,-221.0,0.0001749,2]
[393894082,1763075438210,-953.65621074,0.000175,2]
[393894084,1763075438219,-6500.0,0.000175,6]
[393894086,1763075438229,-1100.0,0.000175,6]
[393894087,1763075438239,-150.0,0.00017526,2]
[393894088,1763075438249,-11716.24153131,0.00017529,2]
[393894089,1763075438259,-953.65621068,0.00017557,2]
[393894090,1763075438268,-432.72868883,0.000176,2]
[393894091,1763075438278,-8200.0,0.000176,6]
[393894092,1763075438288,-1400.0,0.000176,6]
[393894093,1763075438298,-953.65621068,0.00017614,2]
[393894094,1763075438307,-150.0,0.00017621,2]
[393894095,1763075438319,-22629.077712,0.00017628,2]
[393894096,1763075438329,-432.72868881,0.00017633,2]
[393894097,1763075438339,-500.0,0.00017635,2]
[393894098,1763075438348,-500.0,0.00017635,2]
[393894099,1763075438358,-500.0,0.00017635,2]
[393894100,1763075438367,-500.0,0.00017635,2]
[393894101,1763075438377,-500.0,0.00017635,2]
[393894102,1763075438386,-11716.24153131,0.00017653,2]
[393894103,1763075438396,-22629.07771193,0.00017658,2]
[393894105,1763075438407,-432.72868881,0.00017667,2]
[393894106,1763075438417,-500.0,0.00017671,2]
[393894108,1763075438427,-953.65621068,0.00017671,2]
[393894110,1763075438436,-503.18215431,0.00017673,2]
[393894111,1763075438446,-500.0,0.00017673,2]
[393894112,1763075438455,-500.0,0.00017673,2]
[393894113,1763075438465,-160.68447692,0.00017673,2]
[393894114,1763075438474,-342.70918904,0.00017673,2]
[393894115,1763075438484,-502.14268274,0.00017673,2]
[393894116,1763075438494,-500.98861298,0.00017673,2]
[393894117,1763075438504,-500.0,0.00017673,2]
[393894118,1763075438513,-500.0,0.00017673,2]
[393894119,1763075438523,-500.0,0.00017673,2]
[393894120,1763075438532,-168.52466912,0.00017673,2]
[393894121,1763075438542,-22629.07771193,0.00017688,2]
[393894122,1763075438552,-151.0,0.0001769,2]
[393894123,1763075438562,-151.0,0.00017694,2]
[393894124,1763075438572,-151.0,0.00017696,2]
[393894125,1763075438582,-8324.85212007,0.000177,2]
[393894126,1763075438592,-1600.0,0.000177,6]
[393894127,1763075438602,-432.72868881,0.000177,2]
[393894128,1763075438612,-200.0,0.000177,6]
[393894129,1763075438622,-151.0,0.00017702,2]
[393894130,1763075438631,-150.0,0.00017716,2]
[393894131,1763075438641,-168.52466912,0.00017719,2]
[393894132,1763075438651,-22629.07771193,0.00017719,2]
[393894133,1763075438661,-9999.99,0.00017728,2]
[393894134,1763075438670,-299.99,0.00017728,4]
[393894135,1763075438680,-9999.99,0.00017728,2]
[393894136,1763075438689,-9999.99,0.00017728,2]
[393894137,1763075438698,-3249.51,0.00017728,2]
[393894138,1763075438707,-9999.99,0.00017728,2]
[393894139,1763075438716,-6856.77,0.00017728,2]
[393894140,1763075438725,-1169.12,0.00017728,2]
[393894141,1763075438735,-150.99,0.00017728,2]
[393894142,1763075438744,-547.68,0.00017728,2]
[393894143,1763075438754,-816.73,0.00017728,2]
[393894144,1763075438764,-1428.56,0.00017728,2]
[393894145,1763075438773,-9999.99,0.00017728,2]
[393894146,1763075438782,-26731.32,0.00017728,2]
[393894147,1763075438802,-953.65621068,0.00017729,2]
[393894148,1763075438812,-432.72868881,0.00017733,2]
[393894149,1763075438822,-150.0,0.00017743,2]
[393894150,1763075438832,-22629.07771193,0.00017749,2]
[393894151,1763075438841,-168.52466912,0.00017764,2]
[393894152,1763075438851,-432.72868881,0.00017767,2]
[393894153,1763075438861,-500.0,0.00017773,2]
[393894154,1763075438871,-500.0,0.00017773,2]
[393894155,1763075438881,-500.0,0.00017773,2]
[393894156,1763075438891,-500.0,0.00017773,2]
[393894157,1763075438901,-11716.24153131,0.00017776,2]
[393894158,1763075438911,-22629.07771193,0.00017779,2]
[393894159,1763075438920,-953.65621068,0.00017786,2]
[393894160,1763075438930,-1706.16419399,0.00017791,2]
[393894161,1763075438939,-432.72868881,0.000178,2]
[393894162,1763075438949,-1600.0,0.000178,6]
[393894163,1763075438959,-200.0,0.000178,6]
[393894164,1763075438968,-168.52466912,0.00017809,2]
[393894165,1763075438978,-22629.07771193,0.00017809,2]
[393894166,1763075438987,-150.0,0.00017811,2]
[393894167,1763075438998,-432.72868881,0.00017833,2]
[393894168,1763075439007,-22629.07771193,0.0001784,2]
[393894169,1763075439017,-953.65621068,0.00017843,2]
[393894170,1763075439027,-168.52466912,0.00017855,2]
[393894171,1763075439036,-235.8,0.00017865,2]
[393894172,1763075439046,-432.72868881,0.00017867,2]
[393894173,1763075439055,-22629.07771193,0.0001787,2]
[393894174,1763075439065,-500.0,0.00017873,2]
[393894175,1763075439076,-171.31783739,0.00017873,2]
[393894176,1763075439085,-500.0,0.00017873,2]
[393894177,1763075439095,-500.0,0.00017873,2]
[393894178,1763075439105,-535.53318786,0.00017873,2]
[393894179,1763075439119,-500.0,0.00017873,2]
[393894180,1763075439129,-500.0,0.00017873,2]
[393894181,1763075439139,-163.85188298,0.00017873,2]
[393894182,1763075439148,-500.0,0.00017873,2]
[393894183,1763075439159,-512.6477435,0.00017873,2]
[393894184,1763075439168,-363.54680066,0.00017873,2]
[393894185,1763075439182,-160.13145735,0.00017873,2]
[393894186,1763075439191,-500.0,0.00017873,2]
[393894187,1763075439202,-500.0,0.00017873,2]
[393894188,1763075439212,-2500.0,0.00017891,3]
[393894189,1763075439222,-500.0,0.00017899,2]
[393894190,1763075439232,-500.0,0.00017899,2]
[393894191,1763075439242,-500.0,0.00017899,2]
[393894192,1763075439252,-500.0,0.00017899,2]
[393894193,1763075439262,-500.0,0.00017899,2]
[393894194,1763075439270,-1980.65857156,0.000179,2]
[393894195,1763075439280,-168.52466912,0.000179,2]
[393894196,1763075439289,-2500.0,0.000179,3]
[393894197,1763075439299,-33305.0021,0.000179,2]
[393894198,1763075439308,-2500.0,0.000179,3]
[393894199,1763075439318,-11716.24153131,0.000179,2]
[393894200,1763075439328,-2500.0,0.000179,3]
[393894201,1763075439339,-1600.0,0.000179,6]
[393894202,1763075439353,-22629.07771193,0.000179,2]
[393894203,1763075439363,-306.53,0.000179,2]
[393894204,1763075439373,-200.0,0.000179,6]
[393894205,1763075439383,-229.05824722,0.000179,2]
[393894206,1763075439393,-953.65621068,0.000179,2]
[393894207,1763075439404,-432.72868881,0.000179,2]
[393894208,1763075439414,-788.33343428,0.000179,2]
[393894209,1763075439423,-226.77554458,0.000179,3]
[393894210,1763075439433,-1236.2827105,0.000179,2]
[393894211,1763075439444,-338.16409327,0.000179,2]
[393894212,1763075439453,-6098.79891156,0.000179,2]
[393894213,1763075439462,-150.0,0.00017905,2]
[393894214,1763075439472,-875.0,0.00017973,2]
[393894215,1763075439482,-500.0,0.00017973,2]
[393894216,1763075439493,-500.0,0.00017973,2]
[393894217,1763075439503,-500.0,0.00017973,2]
[393894218,1763075439514,-500.0,0.00017973,2]
[393894219,1763075439524,-501.0450611,0.00017973,2]
[393894220,1763075439534,-500.0,0.00017973,2]
[393894221,1763075439545,-518.01248713,0.00017973,2]
[393894222,1763075439555,-331.20277471,0.00017973,2]
[393894223,1763075439565,-151.0,0.00017982,2]
[393894224,1763075439577,-2619.97953591,0.0001799,2]
[393894226,1763075439586,-2619.97953591,0.0001799,2]
[393894228,1763075439596,-2619.97953591,0.0001799,2]
[393894229,1763075439606,-151.0,0.00017997,2]
[393894230,1763075439617,-402.24008145,0.00017998,2]
[393894231,1763075439627,-500.0,0.00017998,2]
[393894232,1763075439637,-500.0,0.00017998,2]
[393894233,1763075439647,-500.0,0.00017998,2]
[393894234,1763075439656,-1066.66237962,0.00017999,5]
[393894235,1763075439666,-1066.6623796,0.00017999,5]
[393894236,1763075439675,-1066.66237962,0.00017999,5]
[393894237,1763075439685,-1066.66237962,0.00017999,5]
[393894238,1763075439695,-1066.66237962,0.00017999,5]
[393894239,1763075439705,-500.0,0.00017999,2]
[393894240,1763075439718,-500.0,0.00017999,2]
[393894241,1763075439728,-500.0,0.00017999,2]
[393894243,1763075439737,-500.0,0.00017999,2]
[393894245,1763075439747,-500.0,0.00017999,2]
[393894247,1763075439756,-500.0,0.00017999,2]
[393894249,1763075439766,-500.0,0.00017999,2]
[393894251,1763075439776,-500.0,0.00017999,2]
[393894253,1763075439785,-347.29333909,0.00017999,2]
[393894254,1763075439794,-500.0,0.00017999,2]
[393894255,1763075439802,-500.0,0.00017999,2]
[393894256,1763075439812,-500.0,0.00017999,2]
[393894258,1763075439823,-500.0,0.00017999,2]
[393894260,1763075439832,-500.0,0.00017999,2]
[393894262,1763075439841,-500.0,0.00017999,2]
[393894264,1763075439851,-606.6025301,0.00017999,2]
[393894266,1763075439862,-500.0,0.00017999,2]
[393894269,1763075439872,-500.0,0.00017999,2]
[393894270,1763075439881,-500.0,0.00017999,2]
[393894273,1763075439890,-500.0,0.00017999,2]
[393894275,1763075439900,-500.0,0.00017999,2]
[393894277,1763075439910,-337.97311388,0.00017999,2]
[393894279,1763075439923,-500.0,0.00017999,2]
[393894281,1763075439933,-500.0,0.00017999,2]
[393894283,1763075439945,-500.0,0.00017999,2]
[393894285,1763075439956,-500.0,0.00017999,2]
[393894287,1763075439966,-500.0,0.00017999,2]
[393894290,1763075439976,-500.0,0.00017999,2]
[393894291,1763075439988,-500.0,0.00017999,2]
[393894293,1763075440010,-500.0,0.00017999,2]
[393894294,1763075440020,-500.0,0.00017999,2]
[393894295,1763075440030,-500.0,0.00017999,2]
[393894296,1763075440039,-500.0,0.00017999,2]
[393894297,1763075440049,-500.0,0.00017999,2]
[393894298,1763075440060,-500.0,0.00017999,2]
[393894299,1763075440071,-500.0,0.00017999,2]
[393894300,1763075440081,-414.79117042,0.00017999,2]
[393894301,1763075440091,-500.0,0.00017999,2]
[393894302,1763075440102,-500.0,0.00017999,2]
[393894303,1763075440113,-500.0,0.00017999,2]
[393894304,1763075440124,-500.0,0.00017999,2]
[393894305,1763075440134,-500.0,0.00017999,2]
[393894306,1763075440143,-500.0,0.00017999,2]
[393894307,1763075440154,-500.0,0.00017999,2]
[393894308,1763075440163,-500.0,0.00017999,2]
[393894309,1763075440173,-500.0,0.00017999,2]
[393894310,1763075440182,-500.0,0.00017999,2]
[393894311,1763075440196,-500.0,0.00017999,2]
[393894312,1763075440206,-309.5068257,0.00017999,2]
[393894313,1763075440217,-500.0,0.00017999,2]
[393894314,1763075440227,-602.79349958,0.00017999,2]
[393894315,1763075440236,-500.0,0.00017999,2]
[393894316,1763075440246,-507.90035275,0.00017999,2]
[393894317,1763075440256,-421.960617,0.00017999,2]
[393894318,1763075440266,-300.0,0.00017999,2]
[393894319,1763075440275,-300.0,0.00017999,2]
[393894320,1763075440284,-300.0,0.00017999,2]
[393894321,1763075440294,-500.0,0.00017999,2]
[393894322,1763075440303,-500.0,0.00017999,2]
[393894323,1763075440313,-483.77468973,0.00017999,2]
[393894324,1763075440323,-284.38905023,0.00017999,2]
[393894325,1763075440332,-454.15014735,0.00017999,2]
[393894326,1763075440343,-500.0,0.00017999,2]
[393894327,1763075440352,-500.0,0.00017999,2]
[393894328,1763075440362,-500.0,0.00017999,2]
[393894329,1763075440371,-500.0,0.00017999,2]
[393894330,1763075440381,-154.45764357,0.00018,2]
[393894331,1763075440391,-10454642.70162169,0.00018,2]
[393894335,1763075441032,-502.8546615,0.00018,2]
[393894336,1763075441169,-251.02521827,0.00018,2]
[393894337,1763075441183,-1549429.89344463,0.00018,2]
[393894338,1763075441230,1852.88,0.00030137,120]
[393894339,1763075442164,-1.7e-07,0.00018,2]
[393894340,1763075442258,1030.7014,0.00016786,2]
[393894357,1763075443220,-1662.51667918,0.000178,2]
[393894358,1763075443268,-370.48847686,0.000178,2]
[393894359,1763075443277,-598.71014566,0.00018,2]
[393894365,1763075446051,-1330.10444177,0.0001785,2]
[393894366,1763075446062,-702.90071427,0.0001785,2]
[393894367,1763075446070,-2409.49928573,0.00018,2]
[393894368,1763075446277,-415546.15647397,0.00018,2]
[393894369,1763075446290,-666.61007466,0.00018,2]
[393894370,1763075446384,-375.21015506,0.00018,2]
[393894386,1763075449790,1852.88,0.00030137,120]
[393894611,1763075457714,1389.66,0.00030137,120]
[393894612,1763075468216,1158.05,0.00030137,120]
[393894614,1763075486581,1158.05,0.00030137,120]
[393894616,1763075507343,527.66939416,0.00041042,30]
[393894617,1763075523148,1000.0,0.00041042,60]
[393894619,1763075525345,606.50204805,0.00041042,30]
[393894621,1763075525484,300.0,0.00041042,30]
[393894622,1763075525538,500.0,0.00041042,30]
[393894623,1763075526078,300.0,0.00041042,30]
[393894624,1763075526143,500.0,0.00041042,30]
[393894625,1763075526730,500.0,0.00041042,30]
[393894626,1763075527366,500.0,0.00041042,30]
[393894627,1763075528369,500.0,0.00041042,30]
[393894628,1763075528420,414.0,0.00041042,30]
[393894629,1763075528588,520.0,0.00041042,30]
[393894630,1763075528645,1000.0,0.00041042,30]
[393894631,1763075528725,500.0,0.00041042,30]
[393894632,1763075528812,500.0,0.00041042,30]
[393894633,1763075528866,429.318,0.00041042,30]
[393894634,1763075528983,539.24,0.00041042,30]
[393894635,1763075529019,2216.6269,0.00016786,2]
[393894636,1763075529082,500.0,0.00041042,30]
[393894637,1763075529134,250.0,0.00041042,30]
[393894638,1763075529248,500.0,0.00041042,30]
[393894639,1763075529395,151.0,0.00041042,30]
[393894640,1763075529496,445.202766,0.00041042,30]
[393894641,1763075529575,539.24,0.00041042,30]
[393894642,1763075529639,500.0,0.00041042,30]
[393894643,1763075529897,500.0,0.00041042,30]
[393894644,1763075530018,151.0,0.00041042,30]
[393894645,1763075530180,461.67526834,0.00041042,30]
[393894646,1763075530348,500.0,0.00041042,30]
[393894647,1763075530685,151.0,0.00041042,30]
[393894648,1763075530753,500.0,0.00041042,30]
[393894649,1763075530849,478.75725327,0.00041042,30]
[393894650,1763075531396,151.0,0.00041042,30]
[393894651,1763075531594,500.0,0.00041042,30]
[393894652,1763075531799,496.47127164,0.00041042,30]
[393894653,1763075532058,151.0,0.00041042,30]
[393894654,1763075532217,500.0,0.00041042,30]
[393894655,1763075532511,496.47127164,0.00041042,30]
[393894656,1763075532771,151.0,0.00041042,30]
[393894657,1763075532828,219.47663076,0.00041042,30]
[393894658,1763075532878,500.0,0.00041042,30]
[393894659,1763075533404,151.0,0.00041042,30]
[393894660,1763075533482,500.0,0.00041042,30]
[393894661,1763075533741,288.0,0.00041042,30]
[393894662,1763075533794,250.0,0.00041042,30]
[393894663,1763075534034,151.0,0.00041042,30]
[393894664,1763075534152,500.0,0.00041042,30]
[393894665,1763075534453,250.0,0.00041042,30]
[393894666,1763075534789,151.0,0.00041042,30]
[393894667,1763075534846,250.0,0.00041042,30]
[393894668,1763075534893,500.0,0.00041042,30]
[393894669,1763075535170,250.0,0.00041042,30]
[393894670,1763075535361,151.0,0.00041042,30]
[393894671,1763075535432,500.0,0.00041042,30]
[393894672,1763075535483,250.0,0.00041042,30]
[393894673,1763075535781,250.0,0.00041042,30]
[393894674,1763075535985,151.0,0.00041042,30]
[393894675,1763075536036,200.0,0.00041042,30]
[393894676,1763075536086,500.0,0.00041042,30]
[393894677,1763075536130,250.0,0.00041042,30]
[393894678,1763075536181,1000.0,0.00041042,120]
[393894679,1763075536387,250.0,0.00041042,30]
[393894680,1763075536583,151.0,0.00041042,30]
[393894681,1763075536661,250.0,0.00041042,30]
[393894682,1763075536717,500.0,0.00041042,30]
[393894683,1763075537003,250.0,0.00041042,30]
[393894684,1763075537285,500.0,0.00041042,30]
[393894685,1763075537337,250.0,0.00041042,30]
[393894686,1763075537481,151.0,0.00041042,30]
[393894687,1763075537649,250.0,0.00041042,30]
[393894688,1763075537941,500.0,0.00041042,30]
[393894689,1763075538011,250.0,0.00041042,30]
[393894690,1763075538137,151.0,0.00041042,30]
[393894691,1763075538276,250.0,0.00041042,30]
[393894692,1763075539017,250.0,0.00041042,30]
[393894693,1763075539089,151.0,0.00041042,30]
[393894694,1763075539142,250.0,0.00041042,30]
[393894695,1763075539658,250.0,0.00041042,30]
[393894696,1763075539749,151.0,0.00041042,30]
[393894697,1763075539805,500.0,0.00041042,30]
[393894698,1763075539857,151.0,0.00041042,30]
[393894699,1763075539939,250.0,0.00041042,30]
[393894700,1763075540011,151.0,0.00041042,30]
[393894701,1763075540164,500.0,0.00041042,30]
[393894702,1763075540297,151.0,0.00041042,30]
[393894703,1763075540421,250.0,0.00041042,30]
[393894704,1763075540568,151.0,0.00041042,30]
[393894705,1763075540775,500.0,0.00041042,30]
[393894706,1763075540888,151.0,0.00041042,30]
[393894707,1763075541035,250.0,0.00041042,30]
[393894708,1763075541218,151.0,0.00041042,30]
[393894709,1763075541262,250.0,0.00041042,30]
[393894710,1763075541407,500.0,0.00041042,30]
[393894711,1763075541458,500.0,0.00041042,30]
[393894712,1763075541539,151.0,0.00041042,30]
[393894713,1763075541682,250.0,0.00041042,30]
[393894714,1763075541829,151.0,0.00041042,30]
[393894715,1763075541886,250.0,0.00041042,30]
[393894716,1763075542057,500.0,0.00041042,30]
[393894717,1763075542147,151.0,0.00041042,30]
[393894718,1763075542321,250.0,0.00041042,30]
[393894719,1763075542519,250.0,0.00041042,30]
[393894720,1763075542709,500.0,0.00041042,30]
[393894721,1763075542770,151.0,0.00041042,30]
[393894722,1763075542954,250.0,0.00041042,30]
[393894723,1763075543139,250.0,0.00041042,30]
[393894724,1763075543375,151.0,0.00041042,30]
[393894725,1763075543498,500.0,0.00041042,30]
[393894726,1763075543594,250.0,0.00041042,30]
[393894727,1763075543756,250.0,0.00041042,30]
[393894728,1763075543986,151.0,0.00041042,30]
[393894729,1763075544120,500.0,0.00041042,30]
[393894730,1763075544401,250.0,0.00041042,30]
[393894731,1763075544450,250.0,0.00041042,30]
[393894732,1763075544628,151.0,0.00041042,30]
[393894733,1763075544997,250.0,0.00041042,30]
[393894734,1763075545044,250.0,0.00041042,30]
[393894735,1763075545254,151.0,0.00041042,30]
[393894736,1763075545300,500.0,0.00041042,30]
[393894737,1763075545607,250.0,0.00041042,30]
[393894738,1763075545659,250.0,0.00041042,30]
[393894739,1763075545867,151.0,0.00041042,30]
[393894740,1763075545917,500.0,0.00041042,30]
[393894741,1763075546349,250.0,0.00041042,30]
[393894742,1763075546397,250.0,0.00041042,30]
[393894743,1763075546502,151.0,0.00041042,30]
[393894744,1763075546548,500.0,0.00041042,30]
[393894745,1763075546864,250.0,0.00041042,30]
[393894746,1763075546945,250.0,0.00041042,30]
[393894747,1763075547150,500.0,0.00041042,30]
[393894748,1763075547451,151.0,0.00041042,30]
[393894749,1763075547582,250.0,0.00041042,30]
[393894750,1763075547764,500.0,0.00041042,30]
[393894751,1763075548043,151.0,0.00041042,30]
[393894752,1763075548216,250.0,0.00041042,30]
[393894753,1763075548422,500.0,0.00041042,30]
[393894754,1763075548664,151.0,0.00041042,30]
[393894755,1763075548778,1000.0,0.00041042,60]
[393894756,1763075549302,500.0,0.00041042,30]
[393894757,1763075549380,151.0,0.00041042,30]
[393894758,1763075549650,500.0,0.00041042,30]
[393894759,1763075549758,300.0,0.00041042,30]
[393894760,1763075549896,151.0,0.00041042,30]
[393894761,1763075550263,500.0,0.00041042,30]
[393894762,1763075550372,300.0,0.00041042,30]
[393894763,1763075550572,151.0,0.00041042,30]
[393894764,1763075550860,500.0,0.00041042,30]
[393894765,1763075551187,151.0,0.00041042,30]
[393894766,1763075551492,500.0,0.00041042,30]
[393894767,1763075551791,151.0,0.00041042,30]
[393894768,1763075552134,500.0,0.00041042,30]
[393894769,1763075552772,500.0,0.00041042,30]
[393894771,1763075552840,524.33710981,0.00041042,30]
[393894772,1763075553412,500.0,0.00041042,30]
[393894773,1763075554080,500.0,0.00041042,30]
[393894774,1763075561482,1000.0,0.00041042,60]
[393894775,1763075574173,1000.0,0.00041042,30]
[393894776,1763075586878,1000.0,0.00041042,30]
[393894777,1763075588360,294.979456,7.945e-05,2]
[393894778,1763075593775,634.581373,0.00026763,120]
[393894779,1763075594170,500.0,0.00028363,120]
[393894780,1763075594504,500.0,0.00029963,120]
[393894784,1763075599382,531.466417,0.00028363,120]
[393894785,1763075599573,1000.0,0.00041042,60]
[393894786,1763075600857,500.0,0.00029963,120]
[393894788,1763075604489,500.0,0.00026497,120]
[393894789,1763075604976,500.0,0.0002823,120]
[393894790,1763075605343,500.0,0.00029963,120]
[393894793,1763075649275,527.66939416,0.00041042,30]
[393894817,1763075820273,200.0,0.00016867,2]
[393894819,1763075825376,233.31750323,0.00041042,120]
[393894820,1763075827439,500.0,0.00041042,120]
[393894821,1763075827781,500.0,0.00041042,120]
[393894822,1763075827968,151.0,0.00041042,120]
[393894823,1763075828178,500.0,0.00041042,120]
[393894824,1763075828582,500.0,0.00041042,120]
[393894825,1763075828642,151.0,0.00041042,120]
[393894826,1763075828852,500.0,0.00041042,120]
[393894827,1763075828915,500.0,0.00041042,120]
[393894828,1763075829194,500.0,0.00041042,120]
[393894829,1763075829299,151.0,0.00041042,120]
[393894830,1763075829478,500.0,0.00041042,120]
[393894831,1763075829557,500.0,0.00041042,120]
[393894832,1763075829930,151.0,0.00041042,120]
[393894833,1763075830147,500.0,0.00041042,120]
[393894834,1763075830311,500.0,0.00041042,120]
[393894835,1763075830559,151.0,0.00041042,120]
[393894836,1763075830735,500.0,0.00041042,120]
[393894837,1763075830914,500.0,0.00041042,120]
[393894838,1763075831216,151.0,0.00041042,120]
[393894839,1763075831637,500.0,0.00041042,120]
[393894840,1763075831715,500.0,0.00041042,120]
[393894841,1763075831856,151.0,0.00041042,120]
[393894842,1763075832187,500.0,0.00041042,120]
[393894843,1763075832288,500.0,0.00041042,120]
[393894844,1763075832520,151.0,0.00041042,120]
[393894845,1763075832622,500.0,0.00041042,120]
[393894846,1763075832669,151.0,0.00041042,120]
[393894847,1763075832843,500.0,0.00041042,120]
[393894848,1763075833121,151.0,0.00041042,120]
[393894849,1763075833215,500.0,0.00041042,120]
[393894850,1763075833272,151.0,0.00041042,120]
[393894851,1763075833470,500.0,0.00041042,120]
[393894852,1763075833758,151.0,0.00041042,120]
[393894853,1763075833850,151.0,0.00041042,120]